Cogmind - Beta 11 X8 @@@ ROGUE MODE // 2021.10.23 @ 01:37:59 Player: arctifire Result: Self-destructed Performance ------------- Evolutions (4) 2000 Regions Visited (8) 1600 Robots Destroyed (206) 1030 Value Destroyed (6059) 6059 Prototype IDs (12) 240 Alien Tech Used (0) 0 Bonus (3561) 3561 TOTAL SCORE: 14490 Bonus ------- Triggered High Security 500 High Alert Combat Kills 2168 Follower Combat Kills 1660 Friendly Fire -767 Cogmind --------- Core Integrity 411/850 Matter 227/300 Energy 220/220 System Corruption 13% Temperature Cool (0) Movement Treading (152) Location -6/Factory Parts ------- > --- POWER (2) -------- Micro Nuclear Core Micro Fission Core > --- PROPULSION (3) --- Advanced Treads Heavy Treads > --- UTILITY (6) ------ Advanced Heat Sink Advanced Heat Sink High-capacity Storage Unit Hacking Suite > --- WEAPON (4) ------- Gatling Laser Heavy Beamcaster Flak Gun Advanced EMP Blaster > --- INVENTORY (20) --- Armored Heavy Treads High-capacity Storage Unit Inertial Stasis Machine Authchip [R/NC] Authchip [R/Combat] Authchip [R/Combat] Authchip [R/Combat] Authchip [Propulsion] Authchip [Device] Authchip [Device] Authchip [Processor] Authchip [Processor] Authchip [Processor] Authchip [Weapon] Authchip [Weapon] Hypervelocity Railgun Heavy Linear Accelerator Peak State ------------ > --- POWER ------------ Micro Nuclear Core Micro Nuclear Core > --- PROPULSION ------- Armored Treads Heavy Treads > --- UTILITY ---------- Advanced Heat Sink Advanced Heat Sink Coolant Injector High-capacity Storage Unit Inertial Stasis Machine Insulated Plating > --- WEAPON ----------- Plasma Rifle Plasma Rifle Plasma Rifle Advanced EMP Blaster > --- INVENTORY -------- Advanced Treads Armored Heavy Treads High-capacity Storage Unit Authchip [R/NC] Authchip [R/Combat] Authchip [R/Combat] Authchip [R/Combat] Authchip [Propulsion] Authchip [Device] Authchip [Device] Authchip [Processor] Authchip [Processor] Authchip [Processor] Authchip [Weapon] Authchip [Weapon] Plasma Rifle Heavy Linear Accelerator Advanced EMP Blaster [Rating: 77] Favorites ----------- Power Micro Nuclear Core Engine Heavy Ion Engine Power Core Micro Nuclear Core Propulsion Armored Treads Treads Armored Treads Leg Aluminum Leg Hover Unit Aerolev Unit Flight Unit Improved VTOL Module Utility High-capacity Storage Unit Device Improved Heat Sink Storage High-capacity Storage Unit Hackware Hacking Suite Protection Improved Weapon Shielding Weapon Heavy Assault Rifle Energy Gun Plasma Rifle Energy Cannon Compact Ion Cannon Ballistic Gun Heavy Assault Rifle Launcher Advanced EMP Blaster Build | -11 -10 -9 -8 -8 -8 -6 -6 -6 ------- Run | Scr Mat Mat Mat Sto Rec Fac Was Fac Slots Evolved 8 | . . 2 2 . . 4 . . Power 1 | . . . . . . 1 . . Propulsion 1 | . . . . . . 1 . . Utility 4 | . . . 2 . . 2 . . Weapon 2 | . . 2 . . . . . . Parts Attached 124 | . 12 15 20 41 4 13 6 13 Power 11 | . 1 2 . 2 1 3 . 2 Engine 5 | . 1 2 . 2 . . . . Core 6 | . . . . . 1 3 . 2 Reactor . | . . . . . . . . . Propulsion 28 | . 5 6 2 11 . 1 2 1 Treads 26 | . 5 6 2 9 . 1 2 1 Leg . | . . . . . . . . . Wheel . | . . . . . . . . . Hover 1 | . . . . 1 . . . . Flight 1 | . . . . 1 . . . . Utility 32 | . 3 1 7 10 2 3 2 4 Device 16 | . 2 1 3 3 1 2 2 2 Storage 2 | . 1 . . 1 . . . . Processor . | . . . . . . . . . Hackware 1 | . . . . . . . . 1 Protection 13 | . . . 4 6 1 1 . 1 Artifact . | . . . . . . . . . Weapon 53 | . 3 6 11 18 1 6 2 6 Energy Gun 20 | . 3 2 2 4 . 5 1 3 Energy Cannon 1 | . . . . . . 1 . . Ballistic Gun 21 | . . 3 6 10 . . . 2 Ballistic Cannon . | . . . . . . . . . Launcher 11 | . . 1 3 4 1 . 1 1 Special Weapon . | . . . . . . . . . Impact Weapon . | . . . . . . . . . Slashing Weapon . | . . . . . . . . . Piercing Weapon . | . . . . . . . . . Special Melee Weapon . | . . . . . . . . . Unidentified Prototypes 9 | . 1 1 2 3 . 1 1 . Parts Lost 38 | . 1 2 6 15 . 5 . 9 Power 4 | . . . . . . 2 . 2 Propulsion 5 | . 1 . . 3 . . . 1 Utility 12 | . . . 1 6 . 2 . 3 Weapon 17 | . . 2 5 6 . 1 . 3 Highest Loss Streak 6 | . 1 2 3 6 . 3 . 3 Average Slot Usage (%) 93 | . 96 99 96 90 99 77 89 86 Engine 6 | . 14 11 9 9 5 . . . Core 3 | . . . . . 3 9 13 12 Treads 18 | . 26 22 18 17 18 16 13 12 Device 14 | . 10 11 8 9 18 14 21 19 Storage 9 | . 14 11 9 9 9 6 6 6 Protection 7 | . . . 16 11 8 2 6 7 Energy Gun 14 | . 27 32 8 8 9 12 20 14 Ballistic Gun 11 | . . 7 17 20 18 5 . 2 Launcher 5 | . . 3 8 5 9 6 6 4 Naked Turns . | . . . . . . . . . Heaviest Build 94 | 14 52 62 77 77 71 76 76 94 Greatest Support 92 | 20 40 40 44 44 40 62 90 92 Greatest Overweight (x) 8 | . 2 1 1 8 1 1 1 1 Average Overweight (x) . | . . 1 1 1 1 1 . . Largest Inventory Capacity 20 | 8 20 20 20 20 20 20 20 20 Average Capacity 19 | 8 19 20 20 20 20 20 20 20 Most Carried 20 | 6 19 20 14 18 20 20 20 20 Average Carried 15 | 6 12 15 10 14 16 18 19 19 Final Capacity 20 | 8 20 20 20 20 20 20 20 20 Final Carried 20 | 6 19 12 14 15 20 17 20 19 Class Distribution -------------------- 47% | Tank 28% | Mutant 11% | Scavenger-Tank 7% | Gunner Dominant Class ---------------- Mutant | -10/Materials Gunner | -9/Materials Tank | -8/Materials Scavenger-Tank | -8/Storage Tank | -8/Recycling Tank | -6/Factory Tank | -6/Waste Mutant | -6/Factory Resources | -11 -10 -9 -8 -8 -8 -6 -6 -6 ----------- Run | Scr Mat Mat Mat Sto Rec Fac Was Fac Matter Collected 2951 | 200 127 185 623 1158 68 151 94 345 Remotely . | . . . . . . . . . Salvage Created 7735 | . 713 1347 1210 2692 . 640 . 1133 Parts 462 | . 45 105 83 161 . 22 . 46 Haulers Intercepted 15 | . 2 5 3 4 . . . 1 Recyclers Shooed 4 | . 1 . 1 2 . . . . Parts Field Recycled . | . . . . . . . . . Retrieved Matter . | . . . . . . . . . Parts Self-Destructed . | . . . . . . . . . Prevented . | . . . . . . . . . Kills | -11 -10 -9 -8 -8 -8 -6 -6 -6 ------- Run | Scr Mat Mat Mat Sto Rec Fac Was Fac Combat Hostiles Destroyed 152 | . 15 22 28 60 . 14 . 13 Guns 97 | . 12 20 17 37 . 5 . 6 AOE 46 | . . 2 10 22 . 8 . 4 Classes Destroyed 18 | . 5 3 4 5 . 1 . . Worker 20 | . 2 6 5 2 . 1 . 4 Builder 12 | . . 1 5 2 . . . 4 Tunneler 1 | . . . 1 . . . . . Hauler 15 | . 2 5 3 4 . . . 1 Recycler 1 | . . . 1 . . . . . Mechanic 1 | . . . 1 . . . . . Operator 3 | . . 1 1 . . . . 1 Watcher 5 | . 1 3 . . . . . 1 Swarmer 37 | . 3 8 11 11 . 4 . . Grunt 75 | . 12 9 12 26 . 4 . 12 Brawler 4 | . . . 1 1 . 2 . . Duelist 2 | . . . . 1 . 1 . . Protector 6 | . . . . 5 . 1 . . Sentry 17 | . . 5 4 7 . . . 1 Specialist 4 | . . . . 4 . . . . Programmer 2 | . . . . . . 2 . . Heavy 1 | . . . . 1 . . . . Assembled 4 | . . . . 4 . . . . Thug 2 | . . . . . . . . 2 Best Kill Streak 15 | . 4 5 9 15 . 5 . 13 Combat Bots Only 15 | . 3 5 6 15 . 4 . 8 Max Kills in Single Turn 8 | . 2 3 5 8 . 4 . 3 Gunslinging 1 | . 1 1 1 1 . . . . Exploded 8 | . . 1 3 8 . 4 . 1 Melee . | . . . . . . . . . Uniques/NPCs Destroyed . | . . . . . . . . . Combat | -11 -10 -9 -8 -8 -8 -6 -6 -6 -------- Run | Scr Mat Mat Mat Sto Rec Fac Was Fac Damage Taken 7992 | . 538 566 1373 2634 . 1062 21 1798 Core 881 | . 60 40 104 238 . 76 . 363 Absorbed by Shields 66 | . . . . . . 66 . . Core Remaining (%) 75 | 100 76 90 . . 37 . . . Volleys Fired 346 | . 58 49 76 113 . 22 . 28 Largest 4 | . 2 4 4 4 . 4 . 4 Hottest 276 | . 100 180 115 159 . 276 . 225 Shots Fired 917 | . 90 165 193 324 . 64 1 80 Gun 855 | . 90 165 170 303 . 59 . 68 Cannon 1 | . . . . . . 1 . . Launcher 61 | . . . 23 21 . 4 1 12 Special . | . . . . . . . . . Kinetic 415 | . . 27 139 213 . 12 . 24 Thermal 258 | . 88 . 13 65 . 48 . 44 Explosive 22 | . . . 22 . . . . . Electromagnetic 222 | . 2 138 19 46 . 4 1 12 Robot Hit Streak 20 | . 12 20 18 14 . 15 7 12 Robot Miss Streak 8 | . 2 7 4 7 . 7 . 8 Penetration Max . | . . . . . . . . . Secondary Targets 17 | . 2 3 2 8 . 1 . 1 Max Gunslinging Chain 1 | . 1 1 1 1 . 1 . 1 Shots Hit Robots 568 | . 67 102 117 176 . 44 1 61 Core Hits 422 | . 32 63 84 127 . 30 8 78 Critical Kills 2 | . . . . 1 . . . 1 Critical Parts Destroyed 3 | . . . 2 1 . . . . Critical Strikes 30 | . 9 . 6 6 . 3 . 6 Burn 24 | . 9 . 3 4 . 3 . 5 Destroy 6 | . . . 3 2 . . . 1 Melee Attacks . | . . . . . . . . . Impact . | . . . . . . . . . Slashing . | . . . . . . . . . Piercing . | . . . . . . . . . Sneak Attacks . | . . . . . . . . . Combat Hostiles . | . . . . . . . . . Follow-up Attacks . | . . . . . . . . . Damage Inflicted 16302 | . 893 1693 2949 5451 25 2055 245 2991 Guns 8760 | . 893 1450 1331 2929 . 964 . 1193 Cannons . | . . . . . . . . . Explosions 7517 | . . 243 1618 2522 . 1091 245 1798 Melee . | . . . . . . . . . Ramming 25 | . . . . . 25 . . . Kinetic 3729 | . . 77 899 2162 . 209 . 382 Thermal 5623 | . 859 243 200 1328 . 1606 . 1387 Explosive 1579 | . . . 1579 . . . . . Electromagnetic 5346 | . 34 1373 271 1961 . 240 245 1222 Impact . | . . . . . . . . . Slashing . | . . . . . . . . . Piercing . | . . . . . . . . . Highest Corruption 13 | . 4 . . 1 1 5 6 13 Average Corruption 3 | . 3 . . 1 1 2 5 9 Corruption Purged . | . . . . . . . . . Effects 100 | . 4 . . 3 12 15 26 40 Message Errors 30 | . 1 . . 2 6 4 8 9 Matter Fused 23 | . 2 . . . . 1 8 12 Heat Flow Errors 12 | . . . . . . 1 3 8 Energy Discharges 14 | . . . . . 3 6 . 5 Data Loss (minor) 14 | . 1 . . 1 3 . 6 3 Data Loss (major) 1 | . . . . . . . . 1 Misfires 5 | . . . . . . 3 1 1 Misdirections 1 | . . . . . . . . 1 Overload Shots . | . . . . . . . . . Overflow Damage 236 | . . 36 27 15 . 122 . 36 Projectiles . | . . . . . . . . . Explosions 236 | . . 36 27 15 . 122 . 36 Melee . | . . . . . . . . . Knockbacks 1 | . . . . . 1 . . . Impact 1 | . . . . . 1 . . . Kinetic . | . . . . . . . . . Secondary . | . . . . . . . . . Self-Inflicted Damage 542 | . . 122 81 181 . 88 21 49 Shots 24 | . . 4 3 10 . 2 1 4 Rammed 4 | . . . . . 4 . . . Targets Rammed 4 | . . . . . 4 . . . Kicked . | . . . . . . . . . Crushed . | . . . . . . . . . Highest Temperature 471 | . 321 132 338 188 . 199 97 471 Average Temperature 77 | . 62 37 113 43 . 97 64 141 Received Heat Transfer 2517 | . 282 180 504 875 . 133 . 543 Effects 5 | . 1 . . . . . . 4 Shutdowns 2 | . . . . . . . . 2 Energy Bleed 2 | . . . . . . . . 2 Interference 1 | . 1 . . . . . . . Siege Activations . | . . . . . . . . . Robots Corrupted 2 | . . . . 1 . . . 1 Combat Hostiles 2 | . . . . 1 . . . 1 Parts Fried 13 | . . 6 . 4 . 1 . 2 Impact Corruptions . | . . . . . . . . . Robots Melted 7 | . 3 . 1 . . 1 . 2 Combat Hostiles 7 | . 3 . 1 . . 1 . 2 Parts Melted 28 | . 6 . 2 2 . 4 . 14 Heat Transferred 11414 | . 3219 350 592 2398 . 2185 . 2670 Parts Sabotaged . | . . . . . . . . . Parts Stolen . | . . . . . . . . . Parts Stripped . | . . . . . . . . . Power Chain Reactions 25 | . . 5 . 10 . 1 . 9 Missiles Intercepted . | . . . . . . . . . Alert | -11 -10 -9 -8 -8 -8 -6 -6 -6 ------- Run | Scr Mat Mat Mat Sto Rec Fac Was Fac Peak Influence 2155 | . 175 537 644 1396 579 1172 389 2155 Initial 1053 | . . 26 149 234 519 1053 389 27 Average 515 | . 75 343 407 929 327 1061 270 1016 Maximum Alert Level 5 | . . 2 2 4 2 4 1 5 Low Security (%) 23 | 100 100 13 29 . . . 53 24 Level 1 32 | . . 38 8 7 84 . 46 11 Level 2 18 | . . 47 61 9 15 . . 6 Level 3 13 | . . . . 44 . 80 . 1 Level 4 9 | . . . . 38 . 19 . 23 Level 5 2 | . . . . . . . . 26 High Security . | . . . . . . . . 5 Max Security . | . . . . . . . . . Squads Dispatched 45 | . 3 4 3 13 . 5 . 17 Investigation 12 | . 3 2 . 3 . 1 . 3 Extermination 4 | . . . . . . 2 . 2 Reinforcement 14 | . . 2 2 4 . . . 6 Assault 12 | . . . 1 5 . 2 . 4 Garrison 3 | . . . . 1 . . . 2 Intercept . | . . . . . . . . . Construction Impeded 6 | . . . 2 1 . . . 3 Haulers Reinforced 2 | . . . . . . . . 2 Active Scanning Responses . | . . . . . . . . . Cargo Convoy Interrupts . | . . . . . . . . . Stealth | -11 -10 -9 -8 -8 -8 -6 -6 -6 --------- Run | Scr Mat Mat Mat Sto Rec Fac Was Fac Distress Signals 16 | . 3 3 5 5 . . . . Communications Jammed . | . . . . . . . . . Distress Signals . | . . . . . . . . . Times Spotted 480 | . 28 41 44 99 193 21 . 54 Peak Tracking Total 15 | . 4 5 8 15 7 5 . 10 Tactical Retreats 8 | . 1 2 1 1 . 1 . 2 Traps | -11 -10 -9 -8 -8 -8 -6 -6 -6 ------- Run | Scr Mat Mat Mat Sto Rec Fac Was Fac Traps Triggered 18 | . 3 1 . 9 . 3 . 2 Indirectly 7 | . . . . 6 . . . 1 Trap Hack Attempts . | . . . . . . . . . Triggered . | . . . . . . . . . Disarmed . | . . . . . . . . . Reprogrammed . | . . . . . . . . . Reused . | . . . . . . . . . Traps Extracted . | . . . . . . . . . Installed . | . . . . . . . . . Triggered . | . . . . . . . . . Machines | -11 -10 -9 -8 -8 -8 -6 -6 -6 ---------- Run | Scr Mat Mat Mat Sto Rec Fac Was Fac Machines Disabled 28 | . . . 7 8 . 4 . 9 Max in Single Turn 4 | . . . 2 2 . 4 . . Garrison Access 2 | . . . . 1 . . . 1 Machines Sabotaged . | . . . . . . . . . Garrisons Compromised . | . . . . . . . . . Overloaded Fab Kills . | . . . . . . . . . Hacking | -11 -10 -9 -8 -8 -8 -6 -6 -6 --------- Run | Scr Mat Mat Mat Sto Rec Fac Was Fac Machines Accessed 22 | . 4 1 3 2 6 2 . 4 Terminals 13 | . 2 . 2 2 6 . . 1 Fabricators 1 | . . . . . . 1 . . Repair Stations 3 | . 1 . . . . . . 2 Recycling Units 1 | . 1 . . . . . . . Scanalyzers 3 | . . 1 1 . . 1 . . Garrison Access 1 | . . . . . . . . 1 Total Hacks 54 | . 9 2 7 3 18 3 . 12 Successful 27 | . 5 . 6 3 8 1 . 4 Failed 26 | . 4 2 1 . 9 2 . 8 Catastrophic 7 | . 1 . . . 3 . . 3 Database Lockouts 1 | . . . . . 1 . . . Manual 19 | . 2 . 2 3 11 . . 1 Terminals 35 | . 5 . 5 3 18 . . 4 Fabricators 2 | . . . . . . 2 . . Repair Stations 9 | . 3 . . . . . . 6 Recycling Units 1 | . 1 . . . . . . . Scanalyzers 5 | . . 2 2 . . 1 . . Garrison Access 2 | . . . . . . . . 2 Terminal Hacks 16 | . 2 . 4 3 6 . . 1 Part Schematic 4 | . . . . . 3 . . 1 Robot Schematic 1 | . . . . . 1 . . . Prototype ID Bank 2 | . 1 . 1 . . . . . Branch Access Points 2 | . . . 1 . 1 . . . Recycling Unit Index 1 | . . . . 1 . . . . Alert Level 3 | . . . 1 1 1 . . . Hauler Manifests 3 | . 1 . 1 1 . . . . Fabricator Hacks 1 | . . . . . . 1 . . Load Schematic 1 | . . . . . . 1 . . Repair Station Hacks 4 | . 2 . . . . . . 2 Scan Component 3 | . 1 . . . . . . 2 Repair 1 | . 1 . . . . . . . Recycling Unit Hacks 1 | . 1 . . . . . . . Retrieve Components 1 | . 1 . . . . . . . Scanalyzer 2 | . . . 2 . . . . . Insert Component 1 | . . . 1 . . . . . Analyze 1 | . . . 1 . . . . . Garrison Access Hacks 1 | . . . . . . . . 1 Seal Access 1 | . . . . . . . . 1 Unauthorized Hacks 2 | . . . . . 2 . . . Terminals 2 | . . . . . 2 . . . Botnet 2 | . . . . . 2 . . . Fabricators . | . . . . . . . . . Repair Stations . | . . . . . . . . . Recycling Units . | . . . . . . . . . Scanalyzers . | . . . . . . . . . Garrison Access . | . . . . . . . . . Data Cores Recovered 2 | . . . 1 . . . . 1 Used 1 | . . . 1 . . . . . Hacking Detections 20 | . 3 1 1 3 6 2 . 4 Full Trace Events 11 | . 2 . . . 6 1 . 2 Feedback Events . | . . . . . . . . . Feedback Blocked . | . . . . . . . . . Robot Schematics Acquired 1 | . . . . . 1 . . . Robots Built . | . . . . . . . . . Authchips . | . . . . . . . . . Time . | . . . . . . . . . Total Robot Build Rating . | . . . . . . . . . Part Schematics Acquired 5 | . . . 1 . 3 . . 1 Parts Built . | . . . . . . . . . Authchips . | . . . . . . . . . Time . | . . . . . . . . . Total Part Build Rating . | . . . . . . . . . Parts Repaired 1 | . 1 . . . . . . . Time 13 | . 13 . . . . . . . Parts Recycled . | . . . . . . . . . Recycled Matter . | . . . . . . . . . Retrieved Matter . | . . . . . . . . . Retrieved Components 2 | . 2 . . . . . . . Parts Scanalyzed 1 | . . . 1 . . . . . Part Schematics Acquired 1 | . . . 1 . . . . . Parts Damaged . | . . . . . . . . . Bothacking | -11 -10 -9 -8 -8 -8 -6 -6 -6 ------------ Run | Scr Mat Mat Mat Sto Rec Fac Was Fac Used RIF Installer . | . . . . . . . . . Robots Hacked . | . . . . . . . . . Non-combat . | . . . . . . . . . Combat . | . . . . . . . . . Robot Hacks Applied . | . . . . . . . . . Relay Couplers Released 2 | . . . . 2 . . . . Machine Destruction 2 | . . . . 2 . . . . Robots Rewired . | . . . . . . . . . Allies Hacked . | . . . . . . . . . Hacks Repelled . | . . . . . . . . . Allies | -11 -10 -9 -8 -8 -8 -6 -6 -6 -------- Run | Scr Mat Mat Mat Sto Rec Fac Was Fac Total Allies 25 | . . . . 2 . . 20 3 Largest Group 20 | . . . . 2 1 . 20 20 Highest-Rated Group 767 | . . . . 129 93 . 767 767 Highest-Rated Ally 100 | . . . . 100 93 . 50 50 Total Orders . | . . . . . . . . . Ally Attacks 220 | . . . . 34 . . . 186 Total Damage 7153 | . . . . 958 . . . 6195 Kills 68 | . . . . 16 . . . 52 Allies Corrupted . | . . . . . . . . . Allies Melted . | . . . . . . . . . Intel | -11 -10 -9 -8 -8 -8 -6 -6 -6 ------- Run | Scr Mat Mat Mat Sto Rec Fac Was Fac Robot Analysis Total . | . . . . . . . . . Derelict Logs Recovered . | . . . . . . . . . Drone Launches . | . . . . . . . . . Drone Recoveries . | . . . . . . . . . Exploration | -11 -10 -9 -8 -8 -8 -6 -6 -6 ------------- Run | Scr Mat Mat Mat Sto Rec Fac Was Fac Turns Passed 13723 | 2 1830 1232 1671 2030 3690 1143 862 1263 Spaces Moved 5351 | 2 692 413 592 646 1444 425 487 650 Core . | . . . . . . . . . Treads 5277 | . 621 413 592 645 1444 425 487 650 Legs 73 | 2 71 . . . . . . . Wheels . | . . . . . . . . . Hover 1 | . . . . 1 . . . . Flight . | . . . . . . . . . Fastest Speed 120 | 120 120 240 225 225 250 241 165 152 Average Speed 226 | 120 227 240 231 238 250 245 172 174 Slowest Speed 550 | 120 320 240 240 550 250 250 241 245 Overloaded Moves . | . . . . . . . . . Propulsion Burnouts . | . . . . . . . . . Robots Hopped . | . . . . . . . . . Cave-ins Triggered 2 | . . . . . . . . 2 Exploration Rate (%) 53 | 2 86 43 53 72 99 13 95 19 Regions Visited 8 Branch Regions 2 Pre-discovered Areas . | . . . . . . . . . Known Exits Taken 1 | . . . 1 . . . . . Unknown Exits Taken 5 | 1 1 1 . 1 1 . . . Scrap Searched . | . . . . . . . . . Spaces Dug . | . . . . . . . . . Terrain Destroyed 206 | . . 17 63 51 . 53 . 22 Melee . | . . . . . . . . . Projectile 3 | . . . . . . 1 . 2 AOE 203 | . . 17 63 51 . 52 . 20 Terrain Rammed . | . . . . . . . . . Walls Destroyed . | . . . . . . . . . Machines Disabled . | . . . . . . . . . Actions | -11 -10 -9 -8 -8 -8 -6 -6 -6 --------- Run | Scr Mat Mat Mat Sto Rec Fac Was Fac Total 6267 | 1 852 548 759 884 1521 479 510 713 Wait 323 | . 76 52 45 66 49 13 7 15 Move 5344 | 1 691 412 591 645 1443 425 486 650 Hop . | . . . . . . . . . Pick Up 48 | . 11 5 12 3 13 . 4 . Fast Attach 56 | . 5 1 6 23 1 7 4 9 Attach 24 | . 1 4 5 7 . 4 . 3 Detach 3 | . . . . 1 . . . 2 Swap 44 | . 6 10 9 11 3 2 2 1 Drop 71 | . 4 15 15 14 8 4 7 4 Fire 346 | . 58 49 76 113 . 22 . 28 Melee . | . . . . . . . . . Ram 1 | . . . . . . . . 1 Kick . | . . . . . . . . . Crush 4 | . . . . . 4 . . . Escape Stasis 2 | . . . . . . 2 . . Rewire 1 | . . . . 1 . . . . Trap . | . . . . . . . . . Miscellaneous . | . . . . . . . . . Route ------- -11/Scrapyard -10/Materials (discovered 4 exits: *Mat x3 / [*Min]) -9/Materials (discovered 3 exits: *Mat x2 / [*Min]) -8/Materials (discovered 3 exits: [*Fac] / *Sto x2) -8/Storage (discovered 2 exits: [*Fac] / *Rec) -8/Recycling -6/Factory -6/Waste -6/Factory (discovered 1 exit: [*Ext]) History --------- Turn | Location | Event 1 | -11/Scrapyard | Discovered new exit (range 1) 3 | -11/Scrapyard | Entered Materials 303 | -10/Materials | Build established: Mutant 520 | -10/Materials | Discovered new exit (range 12) 1002 | -10/Materials | Discovered new exit (range 16) 1437 | -10/Materials | Discovered new exit (range 16) 1606 | -10/Materials | Discovered new exit (range 13) 1809 | -10/Materials | Repaired Lgt. Treads 1833 | -10/Materials | Entered another Materials area 1833 | -9/Materials | Evolved 2 slots: Weapon x2 2121 | -9/Materials | Build established: Gunner 2129 | -9/Materials | Discovered new exit (range 3) 2205 | -9/Materials | Discovered new exit (range 13) 2550 | -9/Materials | Discovered new exit (range 16) 3065 | -9/Materials | Entered another Materials area 3065 | -8/Materials | Evolved 2 slots: Utility x2 3186 | -8/Materials | Build established: Mutant 3759 | -8/Materials | Lost 3 parts (3w) 4082 | -8/Materials | Discovered new exit (range 15) 4265 | -8/Materials | First assault squad dispatched 4356 | -8/Materials | Build established: Tank 4573 | -8/Materials | Identified exit to Storage 4736 | -8/Materials | Entered Storage 4848 | -8/Storage | Garrison activated, responded to threat 5046 | -8/Storage | Destroyed 9 combat bots 5077 | -8/Storage | Lost 6 parts (1n2u3w) 5169 | -8/Storage | Lost 4 parts (1n2u1w) 5936 | -8/Storage | First assault squad dispatched 6000 | -8/Storage | Build established: Scavenger-Tank 6005 | -8/Storage | Destroyed 15 combat bots 6021 | -8/Storage | Core integrity fell below 50% 6050 | -8/Storage | Lost 3 parts (1n1u1w) 6058 | -8/Storage | Destroyed 7 combat bots 6074 | -8/Storage | Met 01-MTF 6176 | -8/Storage | Discovered new exit (range 16) 6749 | -8/Storage | Used back door to open Recycling access 6749 | -8/Storage | Discovered new exit (range 4) 6766 | -8/Storage | Entered Recycling 6766 | -8/Recycling | Accompanied by 1 ally (01-MTF) 6771 | -8/Recycling | 01-MTF left 6777 | -8/Recycling | Spotter reported a threat 6800 | -8/Recycling | Spotter reported a threat 6844 | -8/Recycling | Spotter reported a threat 6846 | -8/Recycling | Spotter reported a threat 6848 | -8/Recycling | Spotter reported a threat 6927 | -8/Recycling | Spotter reported a threat 6965 | -8/Recycling | Spotter reported a threat 6991 | -8/Recycling | Spotter reported a threat 6992 | -8/Recycling | Spotter reported a threat 7021 | -8/Recycling | Spotter reported a threat 7021 | -8/Recycling | Spotter reported a threat 7021 | -8/Recycling | Spotter reported a threat 7069 | -8/Recycling | Build established: Tank 7074 | -8/Recycling | Spotter reported a threat 7074 | -8/Recycling | Spotter reported a threat 7127 | -8/Recycling | Spotter reported a threat 7129 | -8/Recycling | Spotter reported a threat 7137 | -8/Recycling | Spotter reported a threat 7144 | -8/Recycling | Spotter reported a threat 7149 | -8/Recycling | Spotter reported a threat 7157 | -8/Recycling | Spotter reported a threat 7166 | -8/Recycling | Spotter reported a threat 7180 | -8/Recycling | Spotter reported a threat 7182 | -8/Recycling | Spotter reported a threat 7198 | -8/Recycling | Spotter reported a threat 7202 | -8/Recycling | Spotter reported a threat 7209 | -8/Recycling | Spotter reported a threat 7210 | -8/Recycling | Spotter reported a threat 7219 | -8/Recycling | Spotter reported a threat 7228 | -8/Recycling | Spotter reported a threat 7233 | -8/Recycling | Spotter reported a threat 7235 | -8/Recycling | Spotter reported a threat 7251 | -8/Recycling | Spotter reported a threat 7255 | -8/Recycling | Spotter reported a threat 7281 | -8/Recycling | Spotter reported a threat 7291 | -8/Recycling | Spotter reported a threat 7310 | -8/Recycling | Spotter reported a threat 7334 | -8/Recycling | Spotter reported a threat 7391 | -8/Recycling | Spotter reported a threat 7409 | -8/Recycling | Spotter reported a threat 7519 | -8/Recycling | Spotter reported a threat 7519 | -8/Recycling | Spotter reported a threat 7525 | -8/Recycling | Spotter reported a threat 7534 | -8/Recycling | Spotter reported a threat 7569 | -8/Recycling | Spotter reported a threat 7581 | -8/Recycling | Spotter reported a threat 7587 | -8/Recycling | Spotter reported a threat 7601 | -8/Recycling | Spotter reported a threat 7622 | -8/Recycling | Spotter reported a threat 7640 | -8/Recycling | Spotter reported a threat 7646 | -8/Recycling | Spotter reported a threat 7657 | -8/Recycling | Spotter reported a threat 7663 | -8/Recycling | Spotter reported a threat 7669 | -8/Recycling | Spotter reported a threat 7675 | -8/Recycling | Spotter reported a threat 7682 | -8/Recycling | Spotter reported a threat 7699 | -8/Recycling | Spotter reported a threat 7701 | -8/Recycling | Spotter reported a threat 7710 | -8/Recycling | Spotter reported a threat 7726 | -8/Recycling | Spotter reported a threat 7728 | -8/Recycling | Spotter reported a threat 7735 | -8/Recycling | Spotter reported a threat 7749 | -8/Recycling | Spotter reported a threat 7749 | -8/Recycling | Spotter reported a threat 7763 | -8/Recycling | Spotter reported a threat 7776 | -8/Recycling | Spotter reported a threat 7779 | -8/Recycling | Spotter reported a threat 7781 | -8/Recycling | Spotter reported a threat 7788 | -8/Recycling | Spotter reported a threat 7802 | -8/Recycling | Spotter reported a threat 7802 | -8/Recycling | Spotter reported a threat 7803 | -8/Recycling | Spotter reported a threat 7829 | -8/Recycling | Spotter reported a threat 7836 | -8/Recycling | Spotter reported a threat 7837 | -8/Recycling | Spotter reported a threat 7856 | -8/Recycling | Spotter reported a threat 7878 | -8/Recycling | Spotter reported a threat 7889 | -8/Recycling | Spotter reported a threat 7892 | -8/Recycling | Spotter reported a threat 7892 | -8/Recycling | Spotter reported a threat 7947 | -8/Recycling | Spotter reported a threat 7957 | -8/Recycling | Spotter reported a threat 7966 | -8/Recycling | Spotter reported a threat 7982 | -8/Recycling | Spotter reported a threat 7997 | -8/Recycling | Spotter reported a threat 8000 | -8/Recycling | Spotter reported a threat 8021 | -8/Recycling | Spotter reported a threat 8030 | -8/Recycling | Spotter reported a threat 8035 | -8/Recycling | Spotter reported a threat 8112 | -8/Recycling | Spotter reported a threat 8120 | -8/Recycling | Spotter reported a threat 8146 | -8/Recycling | Spotter reported a threat 8161 | -8/Recycling | Spotter reported a threat 8163 | -8/Recycling | Spotter reported a threat 8164 | -8/Recycling | Spotter reported a threat 8173 | -8/Recycling | Spotter reported a threat 8185 | -8/Recycling | Spotter reported a threat 8186 | -8/Recycling | Spotter reported a threat 8198 | -8/Recycling | Spotter reported a threat 8216 | -8/Recycling | Spotter reported a threat 8216 | -8/Recycling | Spotter reported a threat 8217 | -8/Recycling | Spotter reported a threat 8254 | -8/Recycling | Spotter reported a threat 8255 | -8/Recycling | Spotter reported a threat 8269 | -8/Recycling | Spotter reported a threat 8270 | -8/Recycling | Spotter reported a threat 8308 | -8/Recycling | Spotter reported a threat 8327 | -8/Recycling | Spotter reported a threat 8340 | -8/Recycling | Spotter reported a threat 8347 | -8/Recycling | Spotter reported a threat 8349 | -8/Recycling | Spotter reported a threat 8369 | -8/Recycling | Spotter reported a threat 8400 | -8/Recycling | Spotter reported a threat 8402 | -8/Recycling | Spotter reported a threat 8408 | -8/Recycling | Spotter reported a threat 8408 | -8/Recycling | Spotter reported a threat 8422 | -8/Recycling | Spotter reported a threat 8458 | -8/Recycling | Spotter reported a threat 8461 | -8/Recycling | Spotter reported a threat 8461 | -8/Recycling | Spotter reported a threat 8465 | -8/Recycling | Spotter reported a threat 8466 | -8/Recycling | Spotter reported a threat 8475 | -8/Recycling | Spotter reported a threat 8492 | -8/Recycling | Spotter reported a threat 8512 | -8/Recycling | Spotter reported a threat 8518 | -8/Recycling | Spotter reported a threat 8518 | -8/Recycling | Spotter reported a threat 8519 | -8/Recycling | Spotter reported a threat 8528 | -8/Recycling | Spotter reported a threat 8534 | -8/Recycling | Spotter reported a threat 8541 | -8/Recycling | Spotter reported a threat 8545 | -8/Recycling | Spotter reported a threat 8571 | -8/Recycling | Spotter reported a threat 8571 | -8/Recycling | Spotter reported a threat 8581 | -8/Recycling | Spotter reported a threat 8588 | -8/Recycling | Spotter reported a threat 8594 | -8/Recycling | Spotter reported a threat 8607 | -8/Recycling | Spotter reported a threat 8610 | -8/Recycling | Spotter reported a threat 8660 | -8/Recycling | Spotter reported a threat 8663 | -8/Recycling | Spotter reported a threat 8674 | -8/Recycling | Spotter reported a threat 8674 | -8/Recycling | Spotter reported a threat 8695 | -8/Recycling | Spotter reported a threat 8727 | -8/Recycling | Spotter reported a threat 8727 | -8/Recycling | Spotter reported a threat 8727 | -8/Recycling | Spotter reported a threat 8744 | -8/Recycling | Spotter reported a threat 8753 | -8/Recycling | Spotter reported a threat 8781 | -8/Recycling | Spotter reported a threat 8785 | -8/Recycling | Spotter reported a threat 8797 | -8/Recycling | Spotter reported a threat 8806 | -8/Recycling | Spotter reported a threat 8832 | -8/Recycling | Spotter reported a threat 8838 | -8/Recycling | Spotter reported a threat 8841 | -8/Recycling | Spotter reported a threat 8852 | -8/Recycling | Spotter reported a threat 8854 | -8/Recycling | Spotter reported a threat 8859 | -8/Recycling | Spotter reported a threat 8861 | -8/Recycling | Spotter reported a threat 8913 | -8/Recycling | Spotter reported a threat 8914 | -8/Recycling | Spotter reported a threat 8915 | -8/Recycling | Spotter reported a threat 8932 | -8/Recycling | Spotter reported a threat 8937 | -8/Recycling | Spotter reported a threat 8941 | -8/Recycling | Spotter reported a threat 8941 | -8/Recycling | Spotter reported a threat 8966 | -8/Recycling | Spotter reported a threat 8990 | -8/Recycling | Spotter reported a threat 9005 | -8/Recycling | Spotter reported a threat 9025 | -8/Recycling | Spotter reported a threat 9150 | -8/Recycling | Spotter reported a threat 9224 | -8/Recycling | Spotter reported a threat 9232 | -8/Recycling | Spotter reported a threat 9247 | -8/Recycling | Spotter reported a threat 9250 | -8/Recycling | Spotter reported a threat 9253 | -8/Recycling | Spotter reported a threat 9262 | -8/Recycling | Spotter reported a threat 9285 | -8/Recycling | Spotter reported a threat 9294 | -8/Recycling | Spotter reported a threat 9302 | -8/Recycling | Spotter reported a threat 9303 | -8/Recycling | Spotter reported a threat 9306 | -8/Recycling | Spotter reported a threat 9329 | -8/Recycling | Spotter reported a threat 9359 | -8/Recycling | Spotter reported a threat 9359 | -8/Recycling | Spotter reported a threat 9364 | -8/Recycling | Spotter reported a threat 9373 | -8/Recycling | Spotter reported a threat 9382 | -8/Recycling | Spotter reported a threat 9399 | -8/Recycling | Spotter reported a threat 9411 | -8/Recycling | Spotter reported a threat 9412 | -8/Recycling | Spotter reported a threat 9435 | -8/Recycling | Spotter reported a threat 9443 | -8/Recycling | Spotter reported a threat 9488 | -8/Recycling | Spotter reported a threat 9494 | -8/Recycling | Spotter reported a threat 9502 | -8/Recycling | Spotter reported a threat 9550 | -8/Recycling | Spotter reported a threat 9554 | -8/Recycling | Spotter reported a threat 9573 | -8/Recycling | Spotter reported a threat 9620 | -8/Recycling | Spotter reported a threat 9626 | -8/Recycling | Spotter reported a threat 9635 | -8/Recycling | Spotter reported a threat 9645 | -8/Recycling | Spotter reported a threat 9673 | -8/Recycling | Spotter reported a threat 9733 | -8/Recycling | Spotter reported a threat 9746 | -8/Recycling | Spotter reported a threat 9773 | -8/Recycling | Spotter reported a threat 9775 | -8/Recycling | Spotter reported a threat 9795 | -8/Recycling | Spotter reported a threat 9799 | -8/Recycling | Spotter reported a threat 9862 | -8/Recycling | Spotter reported a threat 9909 | -8/Recycling | Spotter reported a threat 9915 | -8/Recycling | Spotter reported a threat 9918 | -8/Recycling | Spotter reported a threat 9988 | -8/Recycling | Spotter reported a threat 10010 | -8/Recycling | Spotter reported a threat 10021 | -8/Recycling | Spotter reported a threat 10025 | -8/Recycling | Spotter reported a threat 10038 | -8/Recycling | Spotter reported a threat 10045 | -8/Recycling | Spotter reported a threat 10055 | -8/Recycling | Spotter reported a threat 10073 | -8/Recycling | Spotter reported a threat 10078 | -8/Recycling | Spotter reported a threat 10083 | -8/Recycling | Spotter reported a threat 10093 | -8/Recycling | Spotter reported a threat 10101 | -8/Recycling | Spotter reported a threat 10101 | -8/Recycling | Spotter reported a threat 10106 | -8/Recycling | Spotter reported a threat 10131 | -8/Recycling | Spotter reported a threat 10145 | -8/Recycling | Spotter reported a threat 10151 | -8/Recycling | Spotter reported a threat 10154 | -8/Recycling | Spotter reported a threat 10156 | -8/Recycling | Spotter reported a threat 10156 | -8/Recycling | Spotter reported a threat 10173 | -8/Recycling | Spotter reported a threat 10176 | -8/Recycling | Spotter reported a threat 10183 | -8/Recycling | Spotter reported a threat 10204 | -8/Recycling | Spotter reported a threat 10207 | -8/Recycling | Spotter reported a threat 10209 | -8/Recycling | Spotter reported a threat 10210 | -8/Recycling | Spotter reported a threat 10229 | -8/Recycling | Spotter reported a threat 10257 | -8/Recycling | Spotter reported a threat 10260 | -8/Recycling | Spotter reported a threat 10273 | -8/Recycling | Spotter reported a threat 10301 | -8/Recycling | Spotter reported a threat 10326 | -8/Recycling | Spotter reported a threat 10330 | -8/Recycling | Spotter reported a threat 10348 | -8/Recycling | Discovered new exit (range 13) 10354 | -8/Recycling | Spotter reported a threat 10425 | -8/Recycling | Spotter reported a threat 10450 | -8/Recycling | Spotter reported a threat 10456 | -8/Recycling | Entered Factory 10456 | -6/Factory | Evolved 4 slots: Power x1, Propulsion x1, Utility x2 10806 | -6/Factory | First assault squad dispatched 11294 | -6/Factory | Lost 3 parts (2p1u) 11599 | -6/Factory | Sucked down chute 11599 | -6/Factory | Entered Waste 11600 | -6/Waste | Joined by Warlord forces that had cleared the area 12393 | -6/Waste | Discovered new exit (range 11) 12461 | -6/Waste | Entered Factory 12461 | -6/Factory | Accompanied by 20 allies 12593 | -6/Factory | Build established: Mutant 12788 | -6/Factory | Crushed by falling debris 12846 | -6/Factory | Discovered new exit (range 16) 13071 | -6/Factory | Crushed by falling debris 13071 | -6/Factory | System corruption reached 10% 13102 | -6/Factory | Lost 3 parts (1p2w) 13161 | -6/Factory | First assault squad dispatched 13660 | -6/Factory | High security lockdown imminent 13679 | -6/Factory | Core integrity fell below 50% 13707 | -6/Factory | Destroyed 8 combat bots 13715 | -6/Factory | Allied Derelicts emerged from ambush trap array 13724 | -6/Factory | Self-destructed Last Messages --------------- 13671_ Switching to secondary target: G-67 Veteran. 13673_ Power failure, Mic. Fission Core shutdown. 13674_ Overheating: Energy bleed (-34). 13674_ G-67 Veteran suffers critical hit (Burn). 13684_ Critical hit (Burn: +50). 13686_ G-67 Veteran destroyed. 13694_ Acquired 32 matter. 13705_ System corrupted: Component data lost. 13710_ ALERT: Machine network offline. 13715_ Triggered Ambush Trap. 13715_ 2G-DDP(g) emerges from a hatch in the floor. 13715_ QZ-41Z(g) emerges from a hatch in the floor. 13715_ F9-NJW(g) emerges from a hatch in the floor. 13717_ 2G-DDP(g): "We were hacked into the system waiting for the right moment to spring our attack, but seeing as you've already triggered the mechanism and given away our position, let's roll with it." 13717_ G-50 Soldier unfolds itself. 13720_ G-50 Soldier suffers critical hit (Burn). 13724_ G-50 Soldier destroyed. [Achievement: Back For More] Map ----- +----------------------------------------------------+ | ?????????????????????????????????????????????????? | | ?????????????????????????????????????????????????? | | ?????????????????????????????????????????????????? | | ?????????????????????????????????????????????????? | | ?????????????????????????????????????????????????? | | ?????????????????????????????????????????????????? | | ?????????????????????????????????????????????????? | | ?????????????????????????????????????????????????? | | ?????????????????????????????????????????????????? | | ?????????????????????????????????????????????????? | | ?????????????????????????????????????????????????? | | ?????????????????????????????????????????????????? | | ?????????????????????????????????????????????????? | | ????????????????????#########????????????????????? | | ????????????????????# #????????????????????? | | ????????????????????# !! #????????????????????? | | ????????????????????# !! #????????????????????? | | ????????????????????# !! #????????????????????? | | ????????????????????# #????????????????????? | | ????????????????????# #????????????????????? | | ????????????????????# #????????????????????? | | ??#########?????????# [ #????????????????????? | | ??# #?????????# #????????????????????? | | ??# ! #??#####??? #????????????????????? | | ??# ##?# #????? ?????????????????????? | | ??# "### #????###@########## ????????? | | ??# ## ####### ????????? | | ### ! ????????? | | ## [ ????????? | | "## %= """" ????????? | | "## = """?????????????? | | "## =[=[%= ####### g" F" """?????????????? | | ## *=%%# % #?????# g"""" ?????????????? | | #######=##]] #?????# g ???????????? | | #####%%=[#]] #?????# ggb ???????????? | | !+% %*=%=]%]] + ????# % #???????????? | | =##### !!### # ???? k [ ????????????? | | #???#" "##?# # ""???g#### "???????????????? | | #???#####??###+###?""???g#???!/" ???????????????? | | #??????????????????""???u#????/ ???????????????? | | ##??????????????????????? ?????/ ????????????????? | | ????????????????????????? ???????????????????????? | | ?????????????????????????+???????????????????????? | | ?????????????????????????????????????????????????? | | ?????????????????????????????????????????????????? | | ?????????????????????????????????????????????????? | | ?????????????????????????????????????????????????? | | ?????????????????????????????????????????????????? | | ?????????????????????????????????????????????????? | | ?????????????????????????????????????????????????? | +----------------------------------------------------+ Best States ------------- Heat Dissipation 75 Coolant Potential 65 Energy Generation 28 Energy Capacity 360 Matter Stores 300 Matter Capacity 300 Sight Range 16 Terrain Scan Density 10 Armor Coverage 375 Resistance: KI 30 Resistance: TH 10 Resistance: EM 15 Weapon Shielding 66 Evasion (%) 55 Recoil Reduction 3 Particle Charging 20 Offensive Hacking 10 Authchip Count 12 Item Schematics ----------------- Adv. Treads | -8/Materials | Scanalyzed Hacking Suite | -8/Recycling | Hacked Hrd. Medium Armor Plating | -8/Recycling | Hacked Component Analysis Suite | -8/Recycling | Hacked Imp. Proton Missile Launcher | -6/Factory | Hacked Robot Schematics ------------------ S-10 Pest | -8/Recycling | Hacked Fabricated ------------ Nothing Alien Tech Used ----------------- None Achievements -------------- Back For More Challenges ------------ None Game ------ Seed AbsorptionCloakTreads Manual? 0 Play Time 01:22:37 Cumulative 38.8 hours Start 2021.10.23 @ 00:13:13 End 2021.10.23 @ 01:37:59 Sessions 1 Manual Loads 0 Difficulty Rogue Special Mode None Game No. 50 Rogue 19 Adventurer 25 Explorer 6 Win Type - Total 0 Types 0/0/0/0/0/0/0/0/0 Lore% 21 Gallery% 45 Achievement% 56 Wizard Run 0 Options --------- ASCII 0 Keyboard 0 Movement Arrows Keybinds 0 Fullscreen 1 Font 18/SmallcapsGlow Map View 76x50 Tactical HUD 1 Map Filters NONE Filters NONE Steam 1 RUN: 805d6f62-812b-4387-9ab2-5c7986565497